[Event "VII Totalizator Sportowy 2022"]
[Site "Bydgoszcz"]
[Date "2022.07.02"]
[Round "8.24"]
[White "Hulka, Valentyn"]
[Black "Malczyk, Radoslaw"]
[Result "1/2-1/2"]
[ECO "B12"]
[WhiteElo "2123"]
[BlackElo "2067"]
[Annotator "NA RC"]
[PlyCount "73"]
[EventDate "2022.06.25"]
[EventType "swiss"]
[EventCountry "POL"]
[SourceTitle "playchess.com"]
[Source "ChessBase"]
[SourceQuality "1"]
[TimeControl "40/5400+30:1800+30"]

1. e4 {[%emt 0:00:05]} c6 {[%emt 0:00:13]} 2. d4 {[%emt 0:00:17]} d5 {[%emt 0:00:07]} 3. e5 {[%emt 0:00:12]} c5 {[%emt 0:00:07]} 4. dxc5 {[%emt 0:00:08]} e6 {[%emt 0:00:17]} 5. a3 {[%emt 0:00:16]} Bxc5 {[%emt 0:00:10]} 6. Nf3 {[%emt 0:00:05]} f6 {[%emt 0:00:15]} 7. Bd3 {[%emt 0:02:41]} Nc6 {[%emt 0:00:21]} 8. b4 {[%emt 0:02:13]} Be7 {[%emt 0:00:07]} 9. Bb2 {[%emt 0:00:39]} Nh6 {[%emt 0:00:23]} 10. c4 {[%emt 0:05:27]} Nf7 {[%emt 0:00:52]} 11. cxd5 {[%emt 0:00:22]} exd5 {[%emt 0:00:14]} 12. exf6 {[%emt 0:00:54]} Bxf6 {[%emt 0:00:33]} 13. Qe2+ {[%emt 0:00:11]} Kf8 {[%emt 0:01:20]} 14. h3 {[%emt 0:01:48]} Bxb2 {[%emt 0:00:37]} 15. Qxb2 {[%emt 0:00:05]} Qe7+ {[%emt 0:00:11]} 16. Be2 {[%emt 0:00:43]} Bf5 {[%emt 0:00:16]} 17. O-O {[%emt 0:00:21]} Re8 {[%emt 0:00:41]} 18. Re1 {[%emt 0:01:17]} Qd8 {[%emt 0:06:18]} 19. Nbd2 {[%emt 0:01:03]} g5 {[%emt 0:00:15]} 20. b5 {[%emt 0:01:33]} Nce5 {[%emt 0:03:22]} 21. Nxe5 {[%emt 0:02:53]} Rxe5 {[%emt 0:00:55]} 22. Nf3 {[%emt 0:01:17]} Re8 {[%emt 0:00:20]} 23. Rad1 {[%emt 0:02:30]} h5 {[%emt 0:00:08]} 24. Bc4 {[%emt 0:11:54]} Rxe1+ {[%emt 0:00:51]} 25. Nxe1 {[%emt 0:00:04]} Be6 {[%emt 0:00:34]} 26. Nc2 {[%emt 0:04:23]} g4 {[%emt 0:02:36]} 27. Ne3 {[%emt 0:07:07]} gxh3 {[%emt 0:00:40]} 28. Bxd5 {[%emt 0:01:00]} Bxd5 {[%emt 0:01:29]} 29. Rxd5 {[%emt 0:00:07]} Qe7 {[%emt 0:00:23]} 30. Nf5 {[%emt 0:02:56]} Qe1+ {[%emt 0:00:10]} 31. Kh2 {[%emt 0:00:02]} Rg8 {[%emt 0:00:09]} 32. g3 {[%emt 0:03:19]} Qe4 {[%emt 0:01:46]} 33. Qb4+ {[%emt 0:01:41]} Qxb4 {[%emt 0:00:02]} 34. axb4 {[%emt 0:00:06]} Rg4 {[%emt 0:00:30]} 35. Rd7 {[%emt 0:01:08]} Rxb4 {[%emt 0:00:25]} 36. Rxb7 {[%emt 0:00:03]} Ng5 {[%emt 0:00:21]} 37. Rg7 {[%emt 0:06:33]} 1/2-1/2

[Event "VII Totalizator Sportowy 2022"]
[Site "Bydgoszcz"]
[Date "2022.07.03"]
[Round "9.1"]
[White "Tomczak, Jacek"]
[Black "Heberla, Bartlomiej"]
[Result "1-0"]
[ECO "D35"]
[WhiteElo "2584"]
[BlackElo "2576"]
[Annotator "TA"]
[PlyCount "127"]
[EventDate "2022.06.25"]
[EventType "swiss"]
[EventCountry "POL"]
[SourceTitle "playchess.com"]
[Source "ChessBase"]
[SourceQuality "1"]
[TimeControl "40/5400+30:1800+30"]

{[%evp 16,127,11,20,19,0,15,-27,-25,-41,-37,-70,-7,-24,-13,0,-6,-4,0,0,0,-4,0,-16,-8,-22,-18,-26,-19,-36,-28,-40,0,0,22,31,92,91,96,90,237,242,232,120,110,89,127,126,118,130,210,206,223,161,177,135,193,193,183,193,252,248,267,243,354,224,259,228,256,166,189,155,247,235,251,255,318,320,328,272,339,306,558,347,645,428,725,692,710,660,620,397,383,377,605,459,421,150,137,137,2708,1481,5585,5536,29942,29947,6118,620,6087,5874,29965,6297,2431,1133]} 1. d4 {[%emt 0:00:04]} d5 {[%emt 0:00:46]} 2. c4 {[%emt 0:00:11]} e6 {[%emt 0:00:02]} 3. Nc3 {[%emt 0:00:11]} Nf6 {[%emt 0:00:04]} 4. cxd5 {[%emt 0:00:19]} exd5 {[%emt 0:00:03]} 5. Bg5 {[%emt 0:00:11]} c6 {[%emt 0:00:04]} 6. e3 {[%emt 0:00:16]} h6 {[%emt 0:00:06]} 7. Bh4 {[%emt 0:05:22]} Be7 {[%emt 0:00:26]} 8. Bd3 {[%emt 0:01:04]} O-O {[%emt 0:00:02]} 9. Qc2 {[%emt 0:01:47] 9.Nge2 deserves study.} Re8 {[%emt 0:00:03] D36: Queen's Gambit Declined: Exchange Variation: Main line (5 Bg5 c6 6 Qc2).} 10. Bg3 {[%emt 0:04:34]} Nh5 {[%emt 0:28:53] [#]} 11. Bxb8 $146 {[%emt 0:13:00]} ({Predecessor:} 11. Nge2 Bf6 12. b4 b5 13. O-O Nxg3 14. hxg3 a5 15. a3 axb4 16. axb4 Rxa1 17. Rxa1 {1-0 (57) Gallego San Martin,J-Alonso Centeno,J Valladolid 1989}) 11... Rxb8 {[%emt 0:00:29] Black has an edge.} 12. O-O-O {[%emt 0:00:11]} Nf6 {[%emt 0:02:58]} 13. h3 {[%emt 0:06:55]} Qa5 {[%emt 0:13:19]} (13... b6 $15) 14. Kb1 $1 $11 {[%emt 0:04:18]} Be6 {[%emt 0:06:08]} 15. Nge2 {[%emt 0:04:37]} Rbc8 {[%emt 0:13:14]} 16. Nf4 {[%emt 0:26:40]} c5 {[%emt 0:05:04]} 17. dxc5 {[%emt 0:04:23]} Bxc5 {[%emt 0:01:57] aiming for ...Bb4.} 18. Nxe6 {[%emt 0:12:00]} fxe6 {[%emt 0:00:58]} 19. Bg6 {[%emt 0:02:01]} Red8 {[%emt 0:02:10]} 20. Qb3 {[%emt 0:01:53]} Bb4 {[%emt 0:05:16][%cal Rb4c3]} 21. Ne2 {[%emt 0:01:26]} Nd7 {[%emt 0:02:40]} 22. e4 {[%emt 0:02:07][%cal Re4d5]} Ne5 {[%emt 0:03:38]} 23. Nf4 {[%emt 0:01:24][%csl LRd5,LRe6]} Nxg6 {[%emt 0:11:00]} (23... Rd6 $5 {[%cal Rb4d2]} 24. exd5 Bc3 25. Bf7+ (25. bxc3 $2 Rxc3 26. Rc1 Rxb3+ 27. axb3 Nxg6 $19) (25. dxe6 $2 Rb6 $19) (25. Qxb7 $2 Rcd8 $19) 25... Nxf7 26. dxe6 (26. bxc3 $2 Rxc3 27. Rd3 Rxb3+ $19) 26... Rb6 27. exf7+ Kf8 28. Ne6+ Ke7 29. f8=Q+ Rxf8 30. Nxf8 Qf5+ 31. Ka1 Rxb3 32. axb3 Qa5+ 33. Kb1 Qf5+ 34. Ka1 Qa5+ 35. Kb1 Kxf8 36. bxc3 Qxc3 $17) 24. Nxg6 {[%emt 0:00:03]} Kh7 {[%emt 0:00:33]} 25. Nf4 {[%emt 0:00:36][%csl LRd5,LRe6]} dxe4 {[%emt 0:01:01]} ({Better is} 25... Rf8 $1 $14 26. g3 (26. Nxe6 Rxf2 27. Rd4 Be7 $11) 26... Bd6) 26. Rxd8 $1 $16 {[%emt 0:01:41]} (26. Nxe6 Rxd1+ 27. Rxd1 Re8 $11) 26... Rxd8 {[%emt 0:00:02]} 27. Qxe6 {[%emt 0:00:20]} Qa4 {[%emt 0:02:21]} (27... e3 $16) 28. Qxe4+ $18 {[%emt 0:00:25]} (28. a3 Bxa3 29. Qg6+ (29. bxa3 Rd1+ 30. Rxd1 Qxd1+ 31. Kb2 Qd2+ 32. Kb3 Qxf4 $11) 29... Kg8 30. Qe6+ (30. bxa3 $2 Qb3+ 31. Ka1 Qxa3+ 32. Kb1 Qb4+ 33. Ka1 Rd6 $19) 30... Kh7 31. Qf5+ (31. bxa3 Rd1+ 32. Rxd1 Qxd1+ 33. Kb2 Qd2+ 34. Kb3 Qxf4 $11) 31... Kh8 $11) 28... Kh8 {[%emt 0:00:02] ( -> ...Rd1+)} 29. Nd3 {[%emt 0:02:49]} ({Much less strong is} 29. Ng6+ $6 Kg8 30. a3 (30. Qe6+ Kh7 $11) 30... Qb3 31. Qxb4 (31. axb4 Rd1+ 32. Rxd1 Qxd1+ 33. Ka2 Qa4+ 34. Kb1 Qd1+ 35. Ka2 Qa4+ 36. Kb1 Qd1+ $11) 31... Qd3+ 32. Ka1 Qxg6) (29. a3 $18 Rd1+ 30. Rxd1 Qxd1+ 31. Ka2) 29... a5 $16 {[%emt 0:00:20]} 30. Qxb7 {[%emt 0:02:10][%cal Oh1c1]} Qe8 {[%emt 0:01:01]} (30... Rxd3 $2 31. Qa8+ Kh7 32. Qe4+ g6 33. Qxd3 $18) 31. Qf3 {[%emt 0:01:17]} Qg6 {[%emt 0:00:01]} 32. Rd1 {[%emt 0:00:04]} Rf8 {[%emt 0:00:53]} (32... Be7 $16 33. Qe2 Bf6) 33. Qg4 $18 {[%emt 0:00:28]} Qb6 {[%emt 0:00:45]} 34. Ka1 {[%emt 0:01:16]} Be7 {[%emt 0:00:02]} 35. f4 {[%emt 0:01:22]} Rb8 {[%emt 0:00:56]} (35... Bf6 $16 36. Ne5 Bxe5 37. fxe5 Rf2 38. Qc8+ Kh7) 36. Qe2 {[%emt 0:00:13]} Bf6 {[%emt 0:00:18]} 37. Ne5 {[%emt 0:00:17]} a4 {[%emt 0:00:27] [#]} (37... Kg8 {is a better defense.} 38. Kb1 Qb4 39. Qc4+ Kh7 40. Qc2+ Kh8) 38. a3 $1 {[%emt 0:00:07]} Qc5 {[%emt 0:00:20]} 39. Ka2 {[%emt 0:01:10]} Rb3 {[%emt 0:01:03]} (39... Qb6 $142 40. Kb1 Qb3) 40. Re1 {[%emt 0:00:00]} Qd5 {[%emt 0:00:00] Threatens to win with ...Bxe5.} 41. Kb1 {[%emt 0:05:20]} Rg3 {[%emt 0:05:11]} 42. Nf3 {[%emt 0:17:46]} Qf5+ {[%emt 0:01:10]} 43. Ka1 {[%emt 0:00:10] Strongly threatening Rc1.} Kh7 {[%emt 0:20:09]} (43... Qxf4 $16 {was necessary.} 44. Qd3 Qb8) 44. Qd2 {[%emt 0:00:38]} h5 {[%emt 0:03:12]} 45. Re2 {[%emt 0:00:52]} Qc5 {[%emt 0:00:38]} 46. Qd3+ {[%emt 0:00:54]} Kh6 {[%emt 0:00:38]} 47. Kb1 {[%emt 0:00:58] Inhibits Qc1+.} Qb6 {[%emt 0:01:33]} 48. Qc4 {[%emt 0:01:23]} Qa5 $2 {[%emt 0:01:24]} (48... Qb3 49. Qxb3 axb3) 49. Ka2 {[%emt 0:00:36]} Kh7 $2 {[%emt 0:00:50]} (49... Qa8 50. f5 Kh7) 50. Qe4+ {[%emt 0:00:19]} Kh6 {[%emt 0:00:17]} (50... g6 $142 51. Qc6 Bg7) 51. Ne5 {[%emt 0:03:38][%cal Re5f7]} Qa7 {[%emt 0:00:02] Prevents Nf7+.} 52. Rc2 {[%emt 0:00:56] Black must now prevent Rc6.} g6 {[%emt 0:00:48]} 53. Nf3 {[%emt 0:00:45]} Qf7+ {[%emt 0:00:23]} 54. Kb1 {[%emt 0:00:03]} Qb3 $2 {[%emt 0:00:14]} (54... Qd7 55. Qc4 Qf5) 55. Qc6 {[%emt 0:01:35]} Bg7 {[%emt 0:00:16]} 56. Qc5 $2 {[%emt 0:00:53]} (56. f5 $18 {is more deadly.} Qd3 57. f6) 56... Qd3 $16 {[%emt 0:00:34]} 57. Ka1 {[%emt 0:02:27][%cal Bb1a1,Ba1a2,Ba2b3][%mdl 32]} Rxg2 $2 {[%emt 0:01:35][%mdl 8192]} (57... Qe4 $16 58. Ka2 Qxf4) 58. Rxg2 $18 {[%emt 0:00:10]} Qf1+ {[%emt 0:00:10]} 59. Ka2 {[%emt 0:00:08] White wants to mate with Qg5+.} Qxg2 {[%emt 0:00:02] [#]} 60. Qg5+ $1 {[%emt 0:00:03]} Qxg5 {[%emt 0:00:02]} 61. fxg5+ {[%emt 0:00:03]} Kh7 {[%emt 0:00:12]} 62. b3 {[%emt 0:00:07]} axb3+ {[%emt 0:00:04]} 63. Kxb3 {[%emt 0:00:03] White threatens Kc4 and mate.} Bf8 {[%emt 0:00:27]} 64. a4 {[%emt 0:00:06] Weighted Error Value: White=0.29 (precise) /Black=0.47} 1-0

[Event "VII Totalizator Sportowy 2022"]
[Site "Bydgoszcz"]
[Date "2022.07.03"]
[Round "9.2"]
[White "Krasenkow, Michal"]
[Black "Czarnota, Pawel"]
[Result "1/2-1/2"]
[ECO "E94"]
[WhiteElo "2576"]
[BlackElo "2502"]
[Annotator "TA"]
[PlyCount "89"]
[EventDate "2022.06.25"]
[EventType "swiss"]
[EventCountry "POL"]
[SourceTitle "playchess.com"]
[Source "ChessBase"]
[SourceQuality "1"]
[TimeControl "40/5400+30:1800+30"]

{[%evp 24,89,20,18,23,2,14,24,19,35,31,35,27,18,19,27,75,65,49,68,270,240,191,222,397,398,364,47,41,39,41,42,47,47,50,58,202,206,191,181,198,199,199,208,197,195,194,192,210,175,186,122,95,120,118,60,88,0,0,0,57,-71,-15,-15,-15,-15,-15,-8]} 1. Nf3 {[%emt 0:00:04]} Nf6 {[%emt 0:00:28]} 2. d4 {[%emt 0:00:37]} g6 {[%emt 0:00:38]} 3. c4 {[%emt 0:00:05]} Bg7 {[%emt 0:00:12]} 4. Nc3 {[%emt 0:00:07]} O-O {[%emt 0:00:08]} 5. e4 {[%emt 0:00:06]} d6 {[%emt 0:00:40]} 6. Be2 {[%emt 0:00:20]} e5 {[%emt 0:00:48]} 7. O-O {[%emt 0:00:16]} Na6 {[%emt 0:02:06]} 8. Re1 {[%emt 0:00:36]} c6 {[%emt 0:02:16]} 9. Bf1 {[%emt 0:00:26]} exd4 {[%emt 0:00:34]} 10. Nxd4 {[%emt 0:00:08]} Ng4 {[%emt 0:00:19]} 11. h3 {[%emt 0:00:11]} Qb6 {[%emt 0:00:18]} 12. hxg4 {[%emt 0:00:07]} Qxd4 {[%emt 0:00:07]} 13. Qf3 {[%emt 0:01:59]} Qb6 {[%emt 0:07:44] [#] E94: King's Indian: Classical: 6 Be2 e5 7 0-0: Various Black 7th moves.} 14. Re2 $5 $146 {[%emt 0:19:54][%cal Be1e2,Be2c2,Bc2c1][%mdl 8] New and interesting.} ({Predecessor:} 14. Rd1 Be5 15. Rb1 Nc5 16. Be3 Qc7 17. Bh6 Re8 18. b4 Ne6 19. Qe3 g5 20. g3 Qb6 21. c5 dxc5 {1-0 (41) Fridman,D (2665)-Bojkov,D (2505) Belgium 2010}) 14... Be6 {[%emt 0:02:46]} 15. Rc2 {[%emt 0:01:59]} Nb4 {[%emt 0:10:49] White has an edge.} 16. Be3 {[%emt 0:04:33]} Qa6 {[%emt 0:10:45]} (16... Nxc2 17. Bxb6 axb6 18. Rd1 $16) 17. Rcc1 {[%emt 0:03:09] Strongly threatening a3.} Bxc4 {[%emt 0:01:47]} 18. Bxc4 {[%emt 0:01:14]} Qxc4 {[%emt 0:00:07]} 19. Nd5 $1 {[%emt 0:00:10]} Qb5 {[%emt 0:05:22]} (19... cxd5 $11 {is superior.} 20. Rxc4 dxc4) 20. Nc7 $16 {[%emt 0:03:30][%csl LRa8,LRb5] White is more active.} Qa5 {[%emt 0:07:39]} 21. Nxa8 {[%emt 0:00:08][%cal Oe3d2]} Bxb2 $2 {[%emt 0:00:41]} (21... Nd3 $1 $14) 22. Rab1 $18 {[%emt 0:07:50][%cal Ba1b1,Bb1b7,Bb7a7][%mdl 32]} Bxc1 {[%emt 0:12:31]} 23. Bxc1 {[%emt 0:00:40]} Nc2 $2 {[%emt 0:03:37] [#]} (23... Na6 {was called for.} 24. Bb2 f6) 24. Bb2 $1 {[%emt 0:16:06][%cal Of3f6]} c5 {[%emt 0:10:58] [#]} (24... Qxa2 $2 25. Qf6 $1 (25. Qd1 Na3 $18) 25... Qxb1+ 26. Kh2 Qxb2 27. Qxb2 Rxa8 28. Qxb7 $18) 25. Qf6 $2 {[%emt 0:04:04]} Nd4 $1 $14 {[%emt 0:00:13]} 26. Bxd4 {[%emt 0:00:25]} (26. Qxd6 $2 Qxa2 27. Rd1 Qxb2 $19) 26... cxd4 {[%emt 0:00:06] [#]} 27. Rxb7 $1 {[%emt 0:00:56][%cal Ob7e7] And now Re7! would win.} Qe1+ $1 {[%emt 0:04:03]} 28. Kh2 {[%emt 0:00:01][%cal Ob7e7]} Qxe4 {[%emt 0:00:16]} 29. Rxa7 {[%emt 0:01:20][%cal Oh2g3]} Qxg4 {[%emt 0:10:23] [#]} (29... d3 $1 $14) 30. Nc7 $1 $18 {[%emt 0:04:26] aiming for Ra5.} (30. Qxd6 Qh5+ 31. Kg3 (31. Kg1 Re8 $11) 31... Qg5+ 32. Kh2 Qh5+ 33. Kg1 Re8 $11) 30... d3 {[%emt 0:02:09] [#]} 31. Ne8 $1 {[%emt 0:02:13][%csl Ge8][%cal Rf6g7][%mdl 512]} Qh5+ {[%emt 0:00:05]} 32. Kg3 {[%emt 0:00:06][%csl Ge8][%cal Rf6g7]} Qe5+ {[%emt 0:01:40]} 33. Qxe5 {[%emt 0:00:10]} dxe5 {[%emt 0:00:03][%mdl 4096] Endgame KRN-KR} 34. Nf6+ {[%emt 0:00:09]} Kg7 {[%emt 0:00:21]} 35. Ne4 {[%emt 0:00:05]} Kh6 {[%emt 0:02:40]} 36. Kf3 {[%emt 0:01:20] Black must now prevent Nd6.} f5 {[%emt 0:00:39]} 37. Nd6 {[%emt 0:01:40]} ({White should play} 37. Nd2 $18) 37... e4+ $16 {[%emt 0:00:06]} 38. Ke3 {[%emt 0:00:06]} Rb8 {[%emt 0:00:15]} 39. Nf7+ {[%emt 0:08:20]} (39. Rb7 $16 Ra8 40. Rb2) 39... Kh5 $14 {[%emt 0:00:25]} 40. Ne5 {[%emt 0:00:00]} ({White should try} 40. f3 $16 Rb4 41. Ra6) 40... Rb2 $11 {[%emt 0:00:00] Threatens to win with ...Re2+.} 41. f3 {[%emt 0:18:01]} Rxg2 {[%emt 0:06:21]} (41... Re2+ $2 42. Kf4 h6 43. g4+ fxg4 44. fxg4+ Kh4 45. Nxg6+ Kh3 46. Ne5 $18 (46. Rd7 Rxa2 47. Ne5 Ra4 $14)) (41... Kg5 $1 $11 42. fxe4 fxe4 43. Kxe4 (43. Rxh7 $2 Re2+ 44. Kd4 d2 $19) 43... Re2+ 44. Kxd3 Rxe5) 42. a4 {[%emt 0:19:36]} (42. fxe4 $14 {keeps the upper hand.} fxe4 43. Kxe4 (43. Rxh7+ Kg5 $11)) 42... Kg5 {[%emt 0:10:22]} (42... Re2+ $17 43. Kf4 h6) 43. fxe4 {[%emt 0:08:36] The position is equal.} fxe4 {[%emt 0:01:02]} 44. Kxe4 {[%emt 0:00:15]} Re2+ {[%emt 0:00:52]} 45. Kxd3 {[%emt 0:00:08] Black defended with fortune.  Weighted Error Value: White=0.38/Black=0.35} 1/2-1/2

[Event "VII Totalizator Sportowy 2022"]
[Site "Bydgoszcz"]
[Date "2022.07.03"]
[Round "9.3"]
[White "Kucza, Karol"]
[Black "Janik, Igor"]
[Result "1/2-1/2"]
[ECO "C68"]
[WhiteElo "2305"]
[BlackElo "2525"]
[Annotator "TA"]
[PlyCount "75"]
[EventDate "2022.06.25"]
[EventType "swiss"]
[EventCountry "POL"]
[SourceTitle "playchess.com"]
[Source "ChessBase"]
[SourceQuality "1"]
[TimeControl "40/5400+30:1800+30"]

{[%evp 12,75,0,0,0,0,40,16,16,36,62,12,25,0,13,-64,0,-9,0,-112,-121,-119,-114,-142,-130,-178,-179,-185,-139,-253,-131,-313,-159,-141,-149,-141,-111,-231,-122,-168,-196,-165,-150,-152,-152,-175,-171,-149,-165,-154,-146,-146,-149,-152,-143,-170,0,0,0,0,0,0,0,0,0,0]} 1. e4 {[%emt 0:00:05]} e5 {[%emt 0:00:04]} 2. Nf3 {[%emt 0:00:11]} Nc6 {[%emt 0:00:06]} 3. Bb5 {[%emt 0:00:40]} a6 {[%emt 0:00:07]} 4. Bxc6 {[%emt 0:01:31]} dxc6 {[%emt 0:00:08]} 5. O-O {[%emt 0:00:03]} Bg4 {[%emt 0:07:33]} 6. h3 {[%emt 0:00:08]} Bh5 {[%emt 0:00:05]} 7. g4 {[%emt 0:03:31]} Bg6 {[%emt 0:00:00] C68: Ruy Lopez: Exchange Variation, sidelines.} 8. Nxe5 {[%emt 0:00:08]} Bd6 $1 {[%emt 0:00:15][%mdl 4] is now more promising than 8...Qh4.} 9. Nxg6 {[%emt 0:03:30]} hxg6 {[%emt 0:00:01]} 10. Qf3 {[%emt 0:00:13]} f5 {[%emt 0:00:13]} 11. d4 {[%emt 0:21:10]} (11. e5 $14 Bc5 12. Rd1 (12. gxf5 Qg5+ 13. Kh1 Qh4 $14)) 11... Qd7 $11 {[%emt 0:07:14]} 12. e5 {[%emt 0:15:22]} ({Much less strong is} 12. gxf5 gxf5 13. e5 Be7 $16) 12... Be7 {[%emt 0:01:37]} 13. c3 {[%emt 0:01:09]} ({Better is} 13. Rd1 $11) 13... O-O-O {[%emt 0:05:30] [#]} (13... Rh4 $15) 14. g5 $146 {[%emt 0:06:23]} ({Predecessor:} 14. Qg2 Rh4 15. f3 fxg4 16. fxg4 Nh6 17. Bxh6 Rxh6 18. Nd2 c5 19. Nb3 cxd4 20. cxd4 {1-0 (46) Manukyan,A (2185)-Israfilov,A (1929) Moscow 2020}) 14... Rh5 {[%emt 0:32:27]} 15. Kh2 {[%emt 0:00:16]} (15. Qg2 $1 $11 {keeps the balance.}) 15... Bxg5 $17 {[%emt 0:03:42]} 16. Bxg5 {[%emt 0:00:08]} Rxg5 {[%emt 0:00:01]} 17. Nd2 {[%emt 0:00:13]} Ne7 $1 {[%emt 0:01:59]} 18. Rg1 {[%emt 0:09:48]} (18. Nb3 $17 Rh8 19. Nc5) 18... Rh5 $1 $19 {[%emt 0:00:17]} 19. Rg3 {[%emt 0:00:06] [#]} Rdh8 $1 {[%emt 0:01:41][%cal Of5f4] Strongly threatening ...f4!} 20. Rag1 {[%emt 0:01:11]} (20. Kg2 $17) 20... f4 {[%emt 0:10:45]} ({Black should try} 20... Qe6 $19 21. Nb3 f4 22. Qxf4 Rxh3+ 23. Kg2 R3h4) 21. Rg4 $2 {[%emt 0:00:46]} (21. Qxf4 $17 Rxh3+ 22. Kg2) 21... Rxh3+ {[%emt 0:01:58]} (21... Qf5 $19 22. h4 g5) 22. Qxh3 $17 {[%emt 0:00:08]} Rxh3+ {[%emt 0:00:04]} 23. Kxh3 {[%emt 0:00:08]} Qf5 {[%emt 0:02:48]} 24. R1g2 {[%emt 0:07:38]} (24. Nf3 $17) 24... Qh5+ {[%emt 0:08:35]} 25. Rh4 {[%emt 0:00:08]} Qd1 {[%emt 0:00:06]} 26. f3 {[%emt 0:00:10]} Nd5 {[%emt 0:02:25] Threatens to win with ...Ne3.} 27. Rh8+ {[%emt 0:01:10]} Kd7 {[%emt 0:00:01]} 28. Rh7 {[%emt 0:00:58]} Ne3 {[%emt 0:01:36]} ({And not} 28... Qh1+ 29. Rh2 Qe1 30. Rxg7+ Ne7 31. Ne4 Qf1+ 32. Kg4 Qg1+ 33. Kh3 $11) 29. Rxg7+ {[%emt 0:00:06] [#]} Ke8 $1 {[%emt 0:00:02]} 30. R7xg6 {[%emt 0:04:49] Intending Rg8+ and mate.} Nxg2 {[%emt 0:00:08]} 31. Rxg2 $19 {[%emt 0:00:04][%mdl 4096] Endgame KQ-KRN} Qh1+ {[%emt 0:00:13]} 32. Rh2 {[%emt 0:00:06]} Qa1 {[%emt 0:01:23][%csl LRa2,LRb2]} 33. Rg2 {[%emt 0:04:14]} Qxb2 $2 {[%emt 0:01:13]} (33... Kf7 $19 {White must now prevent ...a5.} 34. a3 Qh1+ 35. Rh2 Qg1) 34. Ne4 $11 {[%emt 0:00:06] The position is equal.} Qb1 {[%emt 0:00:01] ...Qh1+ is the strong threat.} 35. Kg4 {[%emt 0:03:00]} Qh1 {[%emt 0:00:45]} 36. Rb2 {[%emt 0:01:13]} b6 {[%emt 0:03:24]} 37. Kxf4 {[%emt 0:00:07]} Ke7 {[%emt 0:00:31]} 38. Re2 {[%emt 0:02:53] Weighted Error Value: White=0.39/Black=0.26 (precise)} 1/2-1/2

[Event "VII Totalizator Sportowy 2022"]
[Site "Bydgoszcz"]
[Date "2022.07.03"]
[Round "9.4"]
[White "Jakubowski, Krzysztof"]
[Black "Maksimenko, Andrei"]
[Result "1/2-1/2"]
[ECO "D79"]
[WhiteElo "2475"]
[BlackElo "2434"]
[Annotator "TA"]
[PlyCount "20"]
[EventDate "2022.06.25"]
[EventType "swiss"]
[EventCountry "POL"]
[SourceTitle "playchess.com"]
[Source "ChessBase"]
[SourceQuality "1"]
[TimeControl "40/5400+30:1800+30"]

{[%evp 19,20,0,16]} 1. d4 {[%emt 0:00:06]} Nf6 {[%emt 0:00:34]} 2. Nf3 {[%emt 0:00:48]} g6 {[%emt 0:01:45]} 3. g3 {[%emt 0:01:04]} Bg7 {[%emt 0:00:12]} 4. Bg2 {[%emt 0:00:04]} O-O {[%emt 0:01:17]} 5. O-O {[%emt 0:00:12]} c6 {[%emt 0:00:57]} 6. c4 {[%emt 0:02:18]} d5 {[%emt 0:01:14]} 7. cxd5 {[%emt 0:00:17]} cxd5 {[%emt 0:00:07]} 8. Ne5 {[%emt 0:00:24]} Ng4 {[%emt 0:02:01] [#]} 9. Nf3 $146 {[%emt 0:00:31]} ({Predecessor:} 9. Bf4 Nc6 10. Nxc6 bxc6 11. h3 e5 12. Bc1 Nf6 13. dxe5 Ne4 14. Nd2 Nxd2 15. Bxd2 Bxe5 16. Rc1 Qb6 17. Qa4 Qxb2 {½-½ (54) Artemiev,V (2699)-Radjabov,T (2763) chess24.com INT 2021}) 9... Nf6 {[%emt 0:00:38]} 10. Ne5 {[%emt 0:00:05]} Ng4 $1 {[%emt 0:00:06][%mdl 4] 10...Ng4 is a critical line.} 1/2-1/2